fUSD/lending_fUSD_20251012
["ID","MTS","AMOUNT","RATE_DAILY","PERIOD"]
[390966899,1760238633067,-5490.47875739,0.00014304,2]
[390966901,1760238633077,-184.36,0.00014347,2]
[390966903,1760238633087,-253.0,0.0001437,2]
[390966905,1760238633096,-585.0,0.0001437,2]
[390966907,1760238633106,-255.42301849,0.0001437,2]
[390966909,1760238633115,-412.5,0.00014378,2]
[390966911,1760238633125,-505.0,0.00014411,2]
[390966913,1760238633135,-694.77,0.00014521,2]
[390966915,1760238633144,-694.77,0.00014521,2]
[390966917,1760238633153,-694.77,0.00014521,2]
[390966919,1760238633163,-936.0,0.00014575,2]
[390966921,1760238633173,-484.0,0.00014597,2]
[390966923,1760238633187,-301.22,0.00014603,2]
[390966925,1760238633196,-474.23,0.00014658,2]
[390966927,1760238633206,-694.77,0.00014658,2]
[390966929,1760238633216,-694.77,0.00014658,2]
[390966931,1760238633226,-694.77,0.00014658,2]
[390966933,1760238633235,-347.82,0.00014658,2]
[390966935,1760238633245,-339.75,0.00014658,2]
[390966937,1760238633254,-484.0,0.00014669,2]
[390966939,1760238633264,-3662.78595547,0.0001468,2]
[390966941,1760238633273,-93.22392371,0.0001469,2]
[390966947,1760238633320,-519.21842141,0.0001469,2]
[390966949,1760238633330,-2578.98165153,0.0001469,2]
[390966951,1760238633339,-150.13755409,0.0001469,2]
[390966953,1760238633349,-153.56916316,0.0001469,2]
[390966955,1760238633358,-5000.0,0.0001469,2]
[390966957,1760238633368,-1000.0,0.0001469,2]
[390966959,1760238633377,-3662.78595541,0.00014691,2]
[390966961,1760238633387,-150.13755407,0.00014693,2]
[390966963,1760238633397,-165.89071744,0.00014695,2]
[390966965,1760238633406,-150.13755407,0.00014695,2]
[390966967,1760238633415,-2578.9816515,0.000147,2]
[390966969,1760238633427,-3662.78595541,0.00014702,2]
[390966971,1760238633439,-2578.9816515,0.0001471,2]
[390966972,1760238633449,-153.56916316,0.00014713,2]
[390966974,1760238633459,-3662.78595541,0.00014713,2]
[390966976,1760238633470,-2578.9816515,0.0001472,2]
[390966978,1760238633481,-3127.11830293,0.00014724,2]
[390966981,1760238633495,-535.66765248,0.00014724,2]
[390966983,1760238633507,-235.61433718,0.00014725,2]
[390966985,1760238633521,-376.82800788,0.00014725,2]
[390966987,1760238633531,-494.07711918,0.0001473,2]
[390966989,1760238633542,-441.92288082,0.0001473,2]
[390966991,1760238633551,-2578.9816515,0.0001473,2]
[390966993,1760238633561,-187.93931215,0.00014732,2]
[390966995,1760238633573,-271.72053872,0.00014733,2]
[390966997,1760238633584,-153.56916316,0.00014735,2]
[390966999,1760238633593,-3662.78595541,0.00014736,2]
[390967001,1760238633603,-2578.9816515,0.0001474,2]
[390967003,1760238633613,-165.8907174,0.00014746,2]
[390967005,1760238633624,-3662.78595541,0.00014747,2]
[390967007,1760238633635,-2578.9816515,0.0001475,2]
[390967009,1760238633645,-3662.78595541,0.00014758,2]
[390967011,1760238633659,-612.44234506,0.0001476,2]
[390967013,1760238633670,-2578.9816515,0.0001476,2]
[390967016,1760238633684,-936.0,0.00014763,2]
[390967018,1760238633694,-2006.8759367,0.00014764,2]
[390967020,1760238633703,-420.7441,0.00014767,2]
[390967022,1760238633712,-3662.78595541,0.00014769,2]
[390967024,1760238633722,-2578.9816515,0.0001477,2]
[390967026,1760238633731,-258.54,0.0001477,2]
[390967028,1760238633741,-500.4369643,0.00014773,2]
[390967030,1760238633750,-500.0,0.00014773,2]
[390967031,1760238633760,-7.91255977,0.00014773,2]
[390967035,1760238633780,-492.08744023,0.00014773,2]
[390967037,1760238633790,-500.0,0.00014773,2]
[390967039,1760238633799,-271.72053871,0.00014775,2]
[390967041,1760238633808,-258.54,0.0001478,2]
[390967043,1760238633817,-258.54,0.0001478,2]
[390967044,1760238633826,-258.54,0.0001478,2]
[390967046,1760238633835,-258.54,0.0001478,2]
[390967048,1760238633844,-49771.4757,0.0001478,2]
[390967050,1760238633854,-2578.9816515,0.0001478,2]
[390967052,1760238633863,-3662.78595541,0.0001478,2]
[390967054,1760238633873,-901.61975488,0.0001478,2]
[390967057,1760238633883,-427.36520276,0.00014786,2]
[390967059,1760238633892,-286.87985763,0.00014789,2]
[390967061,1760238633901,-500.0,0.00014789,2]
[390967063,1760238633911,-310.18261305,0.00014789,2]
[390967064,1760238633920,-217.29487541,0.00014789,2]
[390967067,1760238633934,-500.0,0.00014789,2]
[390967069,1760238633944,-234.24697055,0.00014789,2]
[390967071,1760238633953,-500.0,0.0001479,2]
[390967073,1760238633963,-500.0,0.0001479,2]
[390967075,1760238633972,-151913.31852533,0.0001479,2]
[390967077,1760238633984,-27780.72313632,0.0001479,2]
[390967079,1760238633995,-33442.70803694,0.0001479,2]
[390967083,1760238634026,-510.0,0.0001479,2]
[390967254,1760238640330,-153.56916316,0.00014758,2]
[390967255,1760238640339,-255.42124894,0.00014779,2]
[390967256,1760238640376,-244.57875106,0.00014779,2]
[390967257,1760238640385,-200.81590034,0.00014779,2]
[390967258,1760238640395,-152.10641279,0.00014779,2]
[390967259,1760238640404,-363.97287938,0.00014779,2]
[390967260,1760238640414,-217.12782914,0.00014779,2]
[390967261,1760238640423,-26.19100169,0.0001478,2]
[390967262,1760238640437,-127.37816147,0.0001478,2]
[390967263,1760238640446,-5514.92122277,0.0001479,2]
[390967264,1760238640459,-882.96,0.0001479,2]
[390967265,1760238640470,-852079.06576597,0.0001479,2]
[390967266,1760238640479,-1330610.27682084,0.0001479,2]
[390967295,1760238646117,-1178.60681997,0.0001479,2]
[390967296,1760238646420,-47236.43798591,0.0001479,2]
[390967297,1760238646452,-10487.58466469,0.0001479,2]
[390967403,1760239711681,265.21470612,0.000107,2]
[390967457,1760239832274,-222.98,0.00013682,2]
[390967458,1760239832283,-250.0,0.00013689,2]
[390967459,1760239832297,-610.0,0.00013755,2]
[390967460,1760239832306,-2000.0,0.00013763,2]
[390967461,1760239832316,-1252.67945163,0.00013772,2]
[390967462,1760239832325,-200.0,0.00013789,2]
[390967463,1760239832335,-256.61,0.00013858,2]
[390967464,1760239832344,-150.85,0.00013947,2]
[390967465,1760239832353,-250.0,0.00013947,7]
[390967466,1760239832363,-168.0,0.00014053,2]
[390967467,1760239832372,-168.0,0.00014068,2]
[390967468,1760239832382,-300.0,0.000141,5]
[390967469,1760239832391,-600.0,0.000142,5]
[390967470,1760239832400,-168.0,0.00014217,2]
[390967471,1760239832410,-900.0,0.000143,5]
[390967472,1760239832419,-530.470425,0.0001432,2]
[390967473,1760239832429,-350.0,0.00014364,2]
[390967474,1760239832438,-625.0,0.00014364,2]
[390967475,1760239832452,-169.0,0.00014393,2]
[390967476,1760239832462,-1200.0,0.000144,5]
[390967477,1760239832471,-169.0,0.00014423,2]
[390967478,1760239832481,-28.16328509,0.00014476,2]
[390967479,1760239832493,-1243.83671491,0.00014476,2]
[390967480,1760239832502,-571.50587822,0.000145,5]
[390967481,1760239832514,-928.49412178,0.000145,5]
[390967482,1760239832524,-227.0,0.00014522,2]
[390967483,1760239832534,-1200.0,0.00014528,2]
[390967484,1760239832543,-465.0,0.00014529,2]
[390967485,1760239832554,-589.0,0.00014577,2]
[390967486,1760239832566,-280.0,0.00014602,2]
[390967487,1760239832582,-300.0,0.00014649,2]
[390967488,1760239832591,-358.3281888,0.00014649,2]
[390967490,1760239832600,-9886.33687555,0.0001465,2]
[390967493,1760239832638,-900.0,0.0001465,2]
[390967497,1760239832681,-4498.31984365,0.0001465,2]
[390967500,1760239832693,-4304.65376632,0.0001465,2]
[390967502,1760239832705,-11473.22480725,0.0001465,2]
[390968025,1760239838375,-300.0,0.000146,5]
[390968026,1760239838386,-2327.07398142,0.0001465,2]
[390968027,1760239838480,-2013.88525483,0.0001465,2]
[390968214,1760239840392,-800.64,0.0001465,2]
[390968216,1760239840403,-356.86569938,0.0001465,2]
[390968218,1760239840414,-556.9974584,0.0001465,2]
[390968223,1760239840454,-3698.3385309,0.0001465,2]
[390968225,1760239840463,-257.91778498,0.00014681,2]
[390968227,1760239840472,-150.0,0.00014689,2]
[390968229,1760239840482,-550.08667043,0.0001469,2]
[390968231,1760239840491,-165.8907174,0.0001469,2]
[390968233,1760239840500,-1194.42632373,0.0001469,2]
[390968235,1760239840510,-5000.0,0.0001469,2]
[390968237,1760239840519,-1033.1239,0.0001469,2]
[390968239,1760239840528,-550.08667037,0.000147,2]
[390968241,1760239840537,-300.0,0.000147,5]
[390968243,1760239840547,-168.0,0.00014701,2]
[390968245,1760239840556,-550.08667037,0.0001471,2]
[390968247,1760239840565,-335.1638576,0.00014718,2]
[390968249,1760239840574,-550.08667037,0.0001472,2]
[390968251,1760239840583,-313.0,0.00014729,2]
[390968253,1760239840593,-550.08667037,0.0001473,2]
[390968255,1760239840602,-203.34762041,0.00014731,2]
[390968257,1760239840611,-151.0,0.00014731,2]
[390968259,1760239840620,-151.0,0.00014731,2]
[390968261,1760239840629,-151.0,0.00014731,2]
[390968263,1760239840639,-151.0,0.00014731,2]
[390968265,1760239840647,-151.0,0.00014731,2]
[390968267,1760239840656,-179.01056085,0.00014731,2]
[390968269,1760239840666,-322.6107,0.00014731,2]
[390968271,1760239840675,-281.4888577,0.00014731,2]
[390968273,1760239840684,-187.89884365,0.00014731,2]
[390968275,1760239840693,-201.65049896,0.00014731,2]
[390968277,1760239840702,-2774.486,0.00014739,2]
[390968279,1760239840712,-171.27653397,0.00014739,2]
[390968282,1760239840722,-550.08667037,0.0001474,2]
[390968284,1760239840731,-550.08667037,0.0001475,2]
[390968285,1760239840740,-169.0,0.00014755,2]
[390968287,1760239840750,-550.08667037,0.0001476,2]
[390968290,1760239840759,-550.08667037,0.0001477,2]
[390968292,1760239840769,-163.03232325,0.0001478,2]
[390968294,1760239840778,-550.08667037,0.0001478,2]
[390968295,1760239840787,-349.96705432,0.0001478,2]
[390968297,1760239840796,-284.91013518,0.0001478,2]
[390968299,1760239840810,-601.0798366,0.0001478,2]
[390968301,1760239840820,-604.78101557,0.00014789,2]
[390968302,1760239840829,-151.9894804,0.00014789,2]
[390968304,1760239840838,-453894.49518,0.0001479,2]
[390968306,1760239840847,-1950.8938082,0.0001479,2]
[390968308,1760239840856,-25634.1614245,0.0001479,2]
[390968310,1760239840865,-16994.9065081,0.0001479,2]
[390968311,1760239840875,-6257.4009503,0.0001479,2]
[390968313,1760239840885,-1329.4969267,0.0001479,2]
[390968315,1760239840893,-72116.9955224,0.0001479,2]
[390968317,1760239840902,-2247.04444,0.0001479,2]
[390968318,1760239840911,-3960.5241937,0.0001479,2]
[390968320,1760239840920,-165.8907174,0.00014795,2]
[390968322,1760239840929,-546.15,0.000148,2]
[390968324,1760239840938,-349.96705432,0.000148,2]
[390968325,1760239840947,-300.0,0.000148,5]
[390968327,1760239840956,-219.4772472,0.00014806,2]
[390968329,1760239840966,-163.03232322,0.0001481,2]
[390968330,1760239840975,-349.96705432,0.0001482,2]
[390968332,1760239840984,-936.0,0.00014833,2]
[390968334,1760239840993,-163.03232322,0.0001484,2]
[390968336,1760239841002,-349.96705432,0.0001484,2]
[390968338,1760239841012,-284.91013516,0.0001484,2]
[390968339,1760239841021,-601.07983658,0.0001484,2]
[390968341,1760239841030,-561.0,0.00014848,2]
[390968343,1760239841040,-349.96705432,0.0001486,2]
[390968345,1760239841051,-163.03232322,0.0001487,2]
[390968346,1760239841063,-3454.3023683,0.00014872,2]
[390968348,1760239841074,-1114.0537636,0.00014872,2]
[390968350,1760239841083,-500.0,0.00014873,2]
[390968352,1760239841092,-500.0,0.00014873,2]
[390968354,1760239841102,-409.93710416,0.00014873,2]
[390968355,1760239841111,-500.0,0.00014873,2]
[390968357,1760239841120,-500.0,0.00014873,2]
[390968359,1760239841130,-500.0,0.00014873,2]
[390968361,1760239841139,-500.0,0.00014873,2]
[390968363,1760239841148,-155.0,0.00014879,2]
[390968365,1760239841157,-1365.0,0.00014879,2]
[390968367,1760239841166,-434769.26029437,0.0001488,2]
[390968369,1760239841177,-30000.0,0.0001488,2]
[390968370,1760239841186,-151.0,0.0001488,2]
[390968372,1760239841195,-240784.073934,0.0001488,2]
[390968374,1760239841208,-405.749847,0.0001488,2]
[390968576,1760239843383,-7002.89,0.0001488,2]
[390968895,1760239846586,-441.28847063,0.00014789,2]
[390968897,1760239846596,-507.43729967,0.0001488,2]
[390968900,1760239846612,-1365.4068274,0.0001488,2]
[390969379,1760240648343,4941.700951,7.945e-05,2]
[390969400,1760240897478,1482.35659,0.000123,2]
[390969405,1760240904070,1482.35657,0.000123,2]
[390969406,1760240909190,1125.2614,0.000123,2]
[390969407,1760240929420,1013.66,0.000123,2]
[390969415,1760241031627,-190.0,0.00013764,2]
[390969416,1760241031637,-2606.15349633,0.00013767,2]
[390969417,1760241031646,-814.84,0.00013768,2]
[390969418,1760241031655,-190.0,0.00013771,2]
[390969419,1760241031665,-190.0,0.00013865,2]
[390969420,1760241031674,-200.0,0.0001389,2]
[390969421,1760241031683,-150.0,0.00013928,2]
[390969422,1760241031694,-310.66,0.00013962,2]
[390969423,1760241031703,-190.0,0.00014023,2]
[390969424,1760241031713,-381.0,0.00014098,2]
[390969425,1760241031722,-167.57,0.00014169,2]
[390969426,1760241031733,-301.0,0.00014434,2]
[390969427,1760241031743,-546.15,0.000145,2]
[390969428,1760241031752,-561.0,0.00014564,2]
[390969429,1760241031762,-610.34373779,0.00014582,2]
[390969430,1760241031771,-1200.0,0.00014599,2]
[390969431,1760241031780,-1092.18,0.000146,2]
[390969432,1760241031789,-546.25,0.000146,2]
[390969433,1760241031799,-190.78649141,0.000147,2]
[390969434,1760241031809,-440.13999103,0.000147,2]
[390969435,1760241031819,-165.8907174,0.000147,2]
[390969437,1760241031830,-176.30420069,0.000147,2]
[390969439,1760241031839,-299.97176088,0.000147,2]
[390969441,1760241031848,-440.13999096,0.00014709,2]
[390969442,1760241031858,-176.30420069,0.00014716,2]
[390969443,1760241031867,-440.13999096,0.00014718,2]
[390969444,1760241031877,-440.13999096,0.00014727,2]
[390969445,1760241031887,-2444.02832,0.0001473,2]
[390969446,1760241031897,-234.66074681,0.0001473,2]
[390969447,1760241031906,-153.56916316,0.00014731,2]
[390969448,1760241031916,-176.30420069,0.00014731,2]
[390969449,1760241031925,-299.97176084,0.00014733,2]
[390969451,1760241031934,-440.13999096,0.00014736,2]
[390969453,1760241031944,-556.9974584,0.0001474,2]
[390969454,1760241031953,-198.95642306,0.0001474,2]
[390969455,1760241031963,-5000.0,0.0001474,2]
[390969456,1760241031983,-440.13999096,0.00014744,2]
[390969457,1760241031994,-440.13999096,0.00014753,2]
[390969458,1760241032004,-2000.0,0.00014761,2]
[390969459,1760241032014,-500.0,0.00014761,2]
[390969461,1760241032024,-200.0,0.00014761,2]
[390969462,1760241032035,-440.13999096,0.00014762,2]
[390969463,1760241032044,-299.97176084,0.00014767,2]
[390969464,1760241032054,-440.13999096,0.00014771,2]
[390969465,1760241032064,-163.03232322,0.0001478,2]
[390969466,1760241032073,-198.95642305,0.0001478,2]
[390969467,1760241032083,-190.78649141,0.0001478,2]
[390969468,1760241032092,-440.13999096,0.0001478,2]
[390969469,1760241032102,-150.0,0.00014783,2]
[390969470,1760241032111,-163.03232322,0.00014783,2]
[390969471,1760241032121,-163.03232322,0.00014787,2]
[390969472,1760241032132,-186.91036811,0.0001479,2]
[390969473,1760241032146,-163.03232322,0.0001479,2]
[390969474,1760241032157,-199.12983143,0.00014799,2]
[390969475,1760241032166,-151.9182917,0.00014799,2]
[390969476,1760241032177,-500.0,0.00014799,2]
[390969477,1760241032186,-263.63019402,0.00014799,2]
[390969478,1760241032196,-233.99757615,0.00014799,2]
[390969479,1760241032206,-58757.43836512,0.000148,2]
[390969480,1760241032228,-297.52122527,0.000148,2]
[390969481,1760241032286,-5934.27856082,0.000148,2]
[390969482,1760241032297,-6570.56328182,0.000148,2]
[390969483,1760241032308,-596.28814389,0.000148,2]
[390969484,1760241032323,-440.56810984,0.000148,2]
[390969485,1760241032358,-1312.09769334,0.000148,2]
[390969486,1760241032369,-13747.53908174,0.000148,2]
[390969694,1760241039724,-262.56342414,0.0001478,2]
[390969696,1760241039735,-934.71938668,0.000148,2]
[390969708,1760241039829,-1170391.43311727,0.000148,2]
[390969710,1760241039839,-62474.0,0.000148,2]
[390969712,1760241039848,-299.97176084,0.000148,2]
[390969714,1760241039858,-9716.9997136,0.000148,2]
[390969716,1760241039867,-3002.60149347,0.000148,2]
[390969718,1760241039877,-2042211.20795862,0.000148,2]
[390969720,1760241039887,-186.91036811,0.0001483,2]
[390969722,1760241039896,-322.6107,0.00014831,2]
[390969724,1760241039905,-646.65982734,0.00014831,2]
[390969726,1760241039914,-299.97176084,0.00014833,2]
[390969728,1760241039923,-2219.589,0.00014839,2]
[390969730,1760241039932,-6165.9522638,0.0001484,2]
[390969732,1760241039941,-144412.3220861,0.0001484,2]
[390969734,1760241039950,-107120.0098313,0.0001484,2]
[390969736,1760241039959,-20387.9349342,0.0001484,2]
[390969738,1760241039968,-8190.806596,0.0001484,2]
[390969740,1760241039977,-218752.399517,0.0001484,2]
[390969742,1760241039987,-500.0,0.0001484,2]
[390969744,1760241039997,-5496.0402252,0.0001484,2]
[390969746,1760241040006,-4985.3636717,0.0001484,2]
[390969748,1760241040015,-151.02888477,0.0001484,2]
[390969750,1760241040024,-500.0,0.0001484,2]
[390969752,1760241040034,-151.12884753,0.0001484,2]
[390969754,1760241040043,-201.67756319,0.0001484,2]
[390969756,1760241040053,-150.0,0.0001484,2]
[390969758,1760241040062,-150.0,0.0001484,2]
[390969760,1760241040071,-164.160082,0.0001484,2]
[390969762,1760241040080,-150.0,0.0001484,2]
[390969764,1760241040089,-164.160082,0.0001484,2]
[390969766,1760241040098,-164.160082,0.0001484,2]
[390969768,1760241040108,-500.0,0.0001484,2]
[390969770,1760241040117,-164.160082,0.0001484,2]
[390969772,1760241040127,-533.0,0.0001484,2]
[390969774,1760241040142,-150.0,0.0001484,2]
[390969776,1760241040153,-150.0,0.0001484,2]
[390969778,1760241040162,-150.0,0.0001484,2]
[390969780,1760241040171,-150.0,0.0001484,2]
[390969782,1760241040181,-500.0,0.0001484,2]
[390969784,1760241040190,-167.784664,0.0001484,2]
[390969786,1760241040199,-500.0,0.0001484,2]
[390969788,1760241040208,-150.0,0.0001484,2]
[390969790,1760241040218,-151.81837537,0.0001484,2]
[390969792,1760241040227,-150.0,0.0001484,2]
[390969794,1760241040238,-500.0,0.0001484,2]
[390969796,1760241040247,-150.0,0.0001484,2]
[390969798,1760241040256,-152.746893,0.0001484,2]
[390969800,1760241040265,-151.0,0.0001484,2]
[390969802,1760241040274,-262.56342412,0.0001484,2]
[390969804,1760241040283,-35358.0,0.00014849,2]
[390969806,1760241040292,-500.0,0.00014865,2]
[390969808,1760241040301,-299.97176084,0.00014867,2]
[390969810,1760241040310,-250000.0,0.0001487,2]
[390969812,1760241040319,-186.91036811,0.0001487,2]
[390969814,1760241040328,-500.72256064,0.00014873,2]
[390969816,1760241040337,-500.0,0.00014873,2]
[390969818,1760241040346,-500.0,0.00014873,2]
[390969820,1760241040356,-409.93710416,0.00014873,2]
[390969822,1760241040365,-500.0,0.00014873,2]
[390969824,1760241040374,-500.0,0.00014873,2]
[390969826,1760241040383,-500.0,0.00014873,2]
[390969828,1760241040392,-500.0,0.00014873,2]
[390969830,1760241040401,-500.0,0.00014873,2]
[390969832,1760241040410,-500.0,0.00014873,2]
[390969834,1760241040419,-500.0,0.00014873,2]
[390969836,1760241040428,-160.31677663,0.00014873,2]
[390969838,1760241040437,-500.0,0.00014873,2]
[390969840,1760241040446,-500.0,0.00014873,2]
[390969842,1760241040455,-500.0,0.00014873,2]
[390969844,1760241040464,-1172.64654408,0.00014879,5]
[390969846,1760241040473,-1172.64654408,0.00014879,5]
[390969848,1760241040483,-207.647707,0.00014879,2]
[390969850,1760241040492,-211.51372,0.00014879,2]
[390969852,1760241040501,-156.064,0.00014879,2]
[390969854,1760241040510,-300.0,0.00014879,2]
[390969856,1760241040520,-2003.0,0.00014879,2]
[390969858,1760241040531,-500.0,0.0001488,2]
[390969860,1760241040540,-153.87910926,0.0001488,2]
[390969862,1760241040549,-2152243.78212601,0.0001488,2]
[390969868,1760241040591,-740.42271886,0.0001488,2]
[390970409,1760241045919,-546.15,0.000145,2]
[390970411,1760241045929,-411.48645,0.0001488,2]
[390970600,1760241212995,-273.64389397,0.00013665,2]
[390970601,1760241217057,-162.29791087,0.00013665,2]
[390970602,1760241217078,-64.10141029,0.00013698,3]
[390970609,1760241260368,-312.62715554,0.00013286,2]
[390970613,1760241483483,19559.43250159,0.00012,2]
[390970620,1760241785158,-187.37284446,0.00013286,2]
[390970621,1760241785179,-114.62715554,0.00013286,2]
[390970622,1760241828011,-278.46193809,0.00013286,2]
[390970624,1760241919093,-183.5548721,0.00013286,2]
[390970628,1760242039672,-37.98318981,0.00013286,2]
[390970629,1760242039697,-223.84278209,0.00013286,2]
[390970630,1760242043999,-26.15721791,0.00013286,2]
[390970631,1760242044035,-261.38956515,0.00013286,2]
[390970636,1760242218492,-309.84282632,0.00013286,2]
[390970637,1760242231553,-190.15717368,0.00013286,2]
[390970638,1760242231563,-125.46413135,0.00013286,2]
[390970639,1760242231572,-36.34935631,0.00013286,2]
[390970640,1760242231581,-161.95133888,0.00013613,2]
[390970641,1760242231589,-601.89858971,0.00013698,3]
[390970642,1760242231598,-250.0,0.00013702,7]
[390970643,1760242231607,-55.95441007,0.00013713,2]
[390970644,1760242231619,-258.38525471,0.00013713,2]
[390970645,1760242231630,-232.66033522,0.00013713,2]
[390970646,1760242231639,-841.39821873,0.00013713,2]
[390970647,1760242231663,-358.60178127,0.00013713,2]
[390970648,1760242231672,-141.39821873,0.00013714,2]
[390970649,1760242231683,-1111.38609621,0.00013714,2]
[390970650,1760242231718,-4459.99999999,0.00013714,2]
[390970651,1760242231772,-1129.44568507,0.00013714,2]
[390970652,1760242231782,-161.16,0.00013817,2]
[390970653,1760242231793,-257.91778498,0.00014128,2]
[390970654,1760242231802,-484.0,0.00014142,2]
[390970655,1760242231812,-484.0,0.00014151,2]
[390970656,1760242231821,-800.94,0.000142,2]
[390970657,1760242231830,-484.0,0.0001421,2]
[390970658,1760242231839,-484.0,0.00014227,2]
[390970659,1760242231849,-163.0,0.00014329,2]
[390970660,1760242231858,-200.0,0.00014329,2]
[390970661,1760242231867,-398.0,0.00014329,2]
[390970662,1760242231875,-484.0,0.00014344,2]
[390970663,1760242231884,-576.0,0.00014402,2]
[390970664,1760242231893,-618.0,0.00014406,2]
[390970665,1760242231902,-782.22799763,0.00014463,4]
[390970666,1760242231962,-783.23866056,0.00014463,4]
[390970667,1760242231973,-343.24244796,0.00014463,4]
[390970668,1760242231984,-453.76047859,0.00014463,4]
[390970669,1760242231996,-392.54313184,0.00014463,4]
[390970670,1760242232015,-265.86992524,0.00014463,4]
[390970671,1760242232027,-1541.37253967,0.00014463,4]
[390970676,1760242237673,-750.34973121,0.00014463,4]
[390970677,1760242237688,-1490.68857124,0.00014463,4]
[390970678,1760242237732,-423.17997,0.00014463,4]
[390970679,1760242237753,-4034.70999996,0.00014463,4]
[390970803,1760242239587,-5328.8165461,0.00014463,4]
[390970804,1760242239600,-410.0,0.0001451,2]
[390970805,1760242239613,-748.0,0.00014545,2]
[390970806,1760242239625,-484.0,0.00014549,2]
[390970807,1760242239638,-484.0,0.0001456,2]
[390970808,1760242239650,-500.0,0.00014565,2]
[390970809,1760242239663,-251.19438679,0.00014565,2]
[390970810,1760242239675,-209.4,0.00014565,2]
[390970811,1760242239688,-500.0,0.00014565,2]
[390970812,1760242239701,-500.0,0.00014565,2]
[390970813,1760242239714,-500.0,0.00014565,2]
[390970814,1760242239727,-500.0,0.00014565,2]
[390970815,1760242239739,-167.63006431,0.00014565,2]
[390970816,1760242239754,-150.0,0.00014565,2]
[390970817,1760242239767,-936.0,0.00014569,2]
[390970818,1760242239780,-646.65982734,0.00014606,2]
[390970819,1760242239796,-322.6107,0.00014606,2]
[390970820,1760242239811,-300.0,0.00014615,2]
[390970821,1760242239826,-300.0,0.00014615,2]
[390970822,1760242239841,-300.0,0.00014615,2]
[390970823,1760242239859,-300.0,0.00014615,2]
[390970824,1760242239873,-204.54054033,0.00014615,2]
[390970825,1760242239885,-305.15013849,0.00014615,2]
[390970826,1760242240512,-508.92348915,0.00014615,2]
[390970827,1760242240550,-195.0,0.00014615,2]
[390970828,1760242240583,-183.5548721,0.00014615,2]
[390970829,1760242240613,-250.0,0.00014615,2]
[390970830,1760242240624,-300.0,0.00014615,2]
[390970831,1760242240634,-2000.0,0.00014615,2]
[390970832,1760242240643,-150.0,0.00014615,2]
[390970833,1760242240652,-2500.0,0.00014615,2]
[390970834,1760242240661,-226.39932116,0.00014615,2]
[390970835,1760242240670,-195.0,0.00014615,2]
[390970836,1760242240678,-549.37275496,0.00014615,2]
[390970837,1760242240688,-324.19,0.00014639,2]
[390970838,1760242240696,-351.02,0.00014639,2]
[390970839,1760242240706,-168.1,0.00014639,2]
[390970840,1760242240714,-168.1,0.00014639,2]
[390970841,1760242240723,-168.1,0.00014639,2]
[390970842,1760242240732,-169.47,0.00014639,2]
[390970843,1760242240742,-500.0,0.00014639,2]
[390970844,1760242240751,-500.0,0.00014639,2]
[390970845,1760242240760,-500.0,0.00014639,2]
[390970846,1760242240770,-410.0,0.00014692,2]
[390970847,1760242240778,-500.0,0.00014694,2]
[390970848,1760242240787,-500.0,0.00014694,2]
[390970849,1760242240798,-500.0,0.00014694,2]
[390970850,1760242240807,-150.0,0.000147,2]
[390970851,1760242240817,-150.0,0.000147,2]
[390970852,1760242240826,-150.0,0.000147,2]
[390970853,1760242240835,-150.0,0.000147,2]
[390970854,1760242240844,-150.0,0.000147,2]
[390970855,1760242240853,-500.0,0.000147,2]
[390970856,1760242240862,-504.62408704,0.000147,2]
[390970857,1760242240872,-150.0,0.000147,2]
[390970858,1760242240881,-150.0,0.000147,2]
[390970859,1760242240891,-500.0,0.000147,2]
[390970860,1760242240900,-150.0,0.000147,2]
[390970861,1760242240909,-151.81837537,0.000147,2]